fUST/lending_fUST_20250226
["ID","MTS","AMOUNT","RATE_DAILY","PERIOD"]
[354451090,1740505293760,-500.0,0.00052054,120]
[354451091,1740505293790,-500.0,0.00052054,120]
[354451092,1740505293819,-500.0,0.00052054,120]
[354451093,1740505293848,-500.0,0.00052054,120]
[354451094,1740505293876,-500.0,0.00052054,120]
[354451095,1740505293907,-500.0,0.00052054,120]
[354451096,1740505293935,-500.0,0.00052054,120]
[354451097,1740505293963,-505.06246647,0.00052054,120]
[354451098,1740505293992,-500.0,0.00052054,120]
[354451099,1740505294023,-500.0,0.00052054,120]
[354451100,1740505294054,-500.0,0.00052054,120]
[354451101,1740505294084,-500.0,0.00052054,120]
[354451102,1740505294112,-500.0,0.00052054,120]
[354451103,1740505294141,-500.0,0.00052054,120]
[354451104,1740505294171,-500.0,0.00052054,120]
[354451105,1740505294200,-500.0,0.00052054,120]
[354451106,1740505294229,-500.0,0.00052054,120]
[354451107,1740505294258,-1276.39,0.00052054,120]
[354451108,1740505294287,-500.0,0.00052054,120]
[354451109,1740505294316,-500.0,0.00052054,120]
[354451110,1740505294347,-500.0,0.00052054,120]
[354451111,1740505294381,-500.0,0.00052054,120]
[354451112,1740505294412,-500.0,0.00052054,120]
[354451113,1740505294443,-500.0,0.00052054,120]
[354451114,1740505294473,-500.0,0.00052054,120]
[354451115,1740505294501,-500.0,0.00052054,120]
[354451116,1740505294528,-1172.03,0.00052054,120]
[354451117,1740505294555,-500.0,0.00052054,120]
[354451118,1740505294582,-566.89,0.00052054,120]
[354451119,1740505294609,-393.74299951,0.00052054,120]
[354451120,1740505294636,-500.0,0.00052054,120]
[354451121,1740505294663,-501.93245644,0.00052054,120]
[354451122,1740505294690,-503.36723565,0.00052054,120]
[354451123,1740505294718,-500.0,0.00052054,120]
[354451124,1740505294745,-2635.48,0.00052054,120]
[354451125,1740505294772,-500.0,0.00052054,120]
[354451126,1740505294798,-500.0,0.00052054,120]
[354451127,1740505294825,-741.58,0.00052054,120]
[354451128,1740505294853,-741.58,0.00052054,120]
[354451129,1740505294882,-501.0656162,0.00052054,120]
[354451130,1740505294909,-741.58,0.00052054,120]
[354451131,1740505294937,-741.58,0.00052054,120]
[354451132,1740505294965,-741.58,0.00052054,120]
[354451133,1740505294992,-500.0,0.00052054,120]
[354451134,1740505295020,-741.58,0.00052054,120]
[354451135,1740505295048,-500.0,0.00052054,120]
[354451136,1740505295076,-741.58,0.00052054,120]
[354451137,1740505295103,-741.58,0.00052054,120]
[354451138,1740505295131,-500.0,0.00052054,120]
[354451139,1740505295158,-741.58,0.00052054,120]
[354451140,1740505295185,-741.58,0.00052054,120]
[354451141,1740505295212,-741.58,0.00052054,120]
[354451142,1740505295239,-741.58,0.00052054,120]
[354451143,1740505295267,-500.0,0.00052054,120]
[354451144,1740505295294,-741.58,0.00052054,120]
[354451145,1740505295323,-741.58,0.00052054,120]
[354451146,1740505295356,-741.58,0.00052054,120]
[354451147,1740505295386,-741.58,0.00052054,120]
[354451148,1740505295416,-500.0,0.00052054,120]
[354451149,1740505295446,-500.0,0.00052054,120]
[354451150,1740505295474,-741.58,0.00052054,120]
[354451151,1740505295501,-741.58,0.00052054,120]
[354451152,1740505295530,-502.78406478,0.00052054,120]
[354451153,1740505295556,-500.0,0.00052054,120]
[354451154,1740505295583,-741.58,0.00052054,120]
[354451155,1740505295613,-500.0,0.00052054,120]
[354451156,1740505295642,-741.58,0.00052054,120]
[354451157,1740505295670,-741.58,0.00052054,120]
[354451158,1740505295698,-741.58,0.00052054,120]
[354451159,1740505295725,-741.58,0.00052054,120]
[354451160,1740505295752,-741.74374081,0.00052054,120]
[354451161,1740505295779,-1452.01,0.00052054,120]
[354451162,1740505295807,-5832.28,0.00052054,120]
[354451163,1740505295833,-761.0,0.00052054,120]
[354451164,1740505295859,-500.0,0.00052054,120]
[354451165,1740505295886,-500.0,0.00052054,120]
[354451166,1740505295913,-500.0,0.00052054,120]
[354451167,1740505295940,-500.0,0.00052054,120]
[354451168,1740505295968,-2595.85,0.00052054,120]
[354451169,1740505295997,-500.0,0.00052054,120]
[354451170,1740505296026,-500.0,0.00052054,120]
[354451171,1740505296053,-500.0,0.00052054,120]
[354451172,1740505296081,-500.0,0.00052054,120]
[354451173,1740505296110,-500.0,0.00052054,120]
[354451174,1740505296138,-500.0,0.00052054,120]
[354451175,1740505296166,-502.1051783,0.00052054,120]
[354451176,1740505296192,-506.44775446,0.00052054,120]
[354451177,1740505296220,-19990.4,0.00052054,120]
[354451178,1740505296248,-500.0,0.00052054,120]
[354451179,1740505296274,-500.0,0.00052054,120]
[354451180,1740505296300,-500.0,0.00052054,120]
[354451181,1740505296328,-500.0,0.00052054,120]
[354451182,1740505296357,-500.0,0.00052054,120]
[354451183,1740505296386,-500.0,0.00052054,120]
[354451184,1740505296612,-500.0,0.00052054,120]
[354451185,1740505296643,-500.0,0.00052054,120]
[354451186,1740505296672,-1981.54,0.00052054,120]
[354451187,1740505296699,-500.0,0.00052054,120]
[354451188,1740505296725,-500.0,0.00052054,120]
[354451189,1740505296752,-500.0,0.00052054,120]
[354451190,1740505296779,-500.0,0.00052054,120]
[354451191,1740505296805,-500.0,0.00052054,120]
[354451192,1740505296832,-231.66041193,0.00052054,120]
[354451193,1740505296860,-500.0,0.00052054,120]
[354451194,1740505296887,-500.0,0.00052054,120]
[354451195,1740505296915,-501.76440804,0.00052054,120]
[354451196,1740505296942,-500.0,0.00052054,120]
[354451197,1740505296970,-500.0,0.00052054,120]
[354451198,1740505296996,-505.42859201,0.00052054,120]
[354451199,1740505297024,-1123.41,0.00052054,120]
[354451200,1740505297051,-500.0,0.00052054,120]
[354451201,1740505297078,-503.40568368,0.00052054,120]
[354451202,1740505297104,-500.0,0.00052054,120]
[354451203,1740505297132,-500.0,0.00052054,120]
[354451204,1740505297158,-928.83,0.00052054,120]
[354451205,1740505297185,-500.0,0.00052054,120]
[354451206,1740505297212,-500.0,0.00052054,120]
[354451207,1740505297240,-500.0,0.00052054,120]
[354451208,1740505297267,-500.0,0.00052054,120]
[354451209,1740505297296,-2328.4,0.00052054,120]
[354451210,1740505297324,-1356.32,0.00052054,120]
[354451211,1740505297351,-1016.76,0.00052054,120]
[354451212,1740505297379,-500.0,0.00052054,120]
[354451213,1740505297409,-500.0,0.00052054,120]
[354451214,1740505297437,-500.0,0.00052054,120]
[354451215,1740505297463,-500.0,0.00052054,120]
[354451216,1740505297488,-500.0,0.00052054,120]
[354451217,1740505297516,-500.0,0.00052054,120]
[354451218,1740505297543,-500.0,0.00052054,120]
[354451219,1740505297569,-1041.62,0.00052054,120]
[354451220,1740505297595,-500.0,0.00052054,120]
[354451221,1740505297621,-500.0,0.00052054,120]
[354451222,1740505297649,-500.0,0.00052054,120]
[354451223,1740505297675,-500.0,0.00052054,120]
[354451224,1740505297702,-500.0,0.00052054,120]
[354451225,1740505297728,-618.09,0.00052054,120]
[354451226,1740505297754,-593.79,0.00052054,120]
[354451227,1740505297781,-2816.02,0.00052054,120]
[354451228,1740505297808,-500.0,0.00052054,120]
[354451229,1740505297836,-5253.18,0.00052054,120]
[354451230,1740505297861,-503.41060773,0.00052054,120]
[354451231,1740505297888,-500.0,0.00052054,120]
[354451232,1740505297915,-500.0,0.00052054,120]
[354451233,1740505297941,-501.63477957,0.00052054,120]
[354451234,1740505297967,-3086.3,0.00052054,120]
[354451235,1740505297995,-501.9771967,0.00052054,120]
[354451236,1740505298020,-500.37473037,0.00052054,120]
[354451237,1740505298047,-500.0,0.00052054,120]
[354451238,1740505298075,-500.0,0.00052054,120]
[354451239,1740505298102,-500.0,0.00052054,120]
[354451240,1740505298134,-500.0,0.00052054,120]
[354451241,1740505298161,-500.0,0.00052054,120]
[354451242,1740505298188,-500.0,0.00052054,120]
[354451243,1740505298215,-1547.91,0.00052054,120]
[354451244,1740505298242,-1446.36,0.00052054,120]
[354451245,1740505298267,-500.0,0.00052054,120]
[354451246,1740505298293,-4493.65,0.00052054,120]
[354451247,1740505298322,-13922.50891526,0.00052054,120]
[354451248,1740505300608,377.47,0.00010959,2]
[354451249,1740505315013,1838.54,0.00010959,2]
[354451250,1740505325580,1532.11,0.00010959,2]
[354451251,1740505336172,1276.76,0.00010959,2]
[354451252,1740505346585,1063.97,0.00010959,2]
[354451253,1740505357182,2264.74,0.00010959,2]
[354451254,1740505367643,1887.29,0.00010959,2]
[354451255,1740505370266,156.8,0.000266,31]
[354451256,1740505378441,1572.74,0.00010959,2]
[354451257,1740505389133,1310.62,0.00010959,2]
[354451258,1740505399649,1092.18,0.00010959,2]
[354451259,1740505401735,151.0,0.000297,16]
[354451260,1740505410437,910.15,0.00010959,2]
[354451261,1740505421006,758.46,0.00010959,2]
[354451262,1740505431566,632.05,0.00010959,2]
[354451263,1740505457174,526.71,0.00010959,2]
[354451264,1740505467750,438.92,0.00010959,2]
[354451265,1740505478314,365.77,0.00010959,2]
[354451266,1740505485843,1195.68800882,0.00024131,26]
[354451267,1740505489052,304.81,0.00010959,2]
[354451268,1740505489952,-805587.32400286,0.0004144,30]
[354451269,1740505489981,-1139.0,0.0004144,30]
[354451270,1740505490007,-2000.0,0.0004144,30]
[354451271,1740505490033,-2000.0,0.0004144,30]
[354451272,1740505490059,-848.0,0.0004144,30]
[354451273,1740505490088,-300000.0,0.0004144,120]
[354451274,1740505490114,-66141.13504271,0.0004144,120]
[354451275,1740505490141,-1780.69585008,0.0004144,30]
[354451276,1740505490167,-449.999999,0.0004144,120]
[354451277,1740505499586,254.0,0.00010959,2]
[354451278,1740505510133,211.67,0.00010959,2]
[354451279,1740505520653,176.39,0.00010959,2]
[354451280,1740505531247,881.99,0.00010959,2]
[354451281,1740505607568,948.60657836,0.000138,2]
[354451282,1740505669254,910.0,6.849e-05,2]
[354451283,1740505669463,910.0,6.849e-05,2]
[354451284,1740505669875,910.0,6.849e-05,2]
[354451285,1740505670091,910.0,6.849e-05,2]
[354451286,1740505670401,910.0,6.849e-05,2]
[354451287,1740505670629,910.0,6.849e-05,2]
[354451288,1740505670839,910.0,6.849e-05,2]
[354451289,1740505671063,910.0,6.849e-05,2]
[354451290,1740505671359,910.0,6.849e-05,2]
[354451291,1740505672251,910.0,6.849e-05,2]
[354451292,1740505673057,910.0,6.849e-05,2]
[354451293,1740505673257,910.0,6.849e-05,2]
[354451294,1740505673788,910.0,6.849e-05,2]
[354451295,1740505674161,910.0,6.849e-05,2]
[354451296,1740505674208,910.0,6.849e-05,2]
[354451297,1740505674272,910.0,6.849e-05,2]
[354451298,1740505674320,910.0,6.849e-05,2]
[354451299,1740505674520,910.0,6.849e-05,2]
[354451300,1740505674711,910.0,6.849e-05,2]
[354451301,1740505675033,910.0,6.849e-05,2]
[354451302,1740505675241,910.0,6.849e-05,2]
[354451303,1740505675438,910.0,6.849e-05,2]
[354451304,1740505675642,910.0,6.849e-05,2]
[354451305,1740505675848,910.0,6.849e-05,2]
[354451306,1740505676052,910.0,6.849e-05,2]
[354451307,1740505676257,910.0,6.849e-05,2]
[354451308,1740505676458,910.0,6.849e-05,2]
[354451309,1740505676671,910.0,6.849e-05,2]
[354451310,1740505676950,910.0,6.849e-05,2]
[354451311,1740505677158,910.0,6.849e-05,2]
[354451312,1740505677371,910.0,6.849e-05,2]
[354451313,1740505677589,910.0,6.849e-05,2]
[354451314,1740505677795,910.0,6.849e-05,2]
[354451315,1740505677996,910.0,6.849e-05,2]
[354451316,1740505678196,910.0,6.849e-05,2]
[354451317,1740505678394,910.0,6.849e-05,2]
[354451318,1740505678601,910.0,6.849e-05,2]
[354451319,1740505678798,910.0,6.849e-05,2]
[354451320,1740505679001,910.0,6.849e-05,2]
[354451321,1740505679204,910.0,6.849e-05,2]
[354451322,1740505679404,910.0,6.849e-05,2]
[354451323,1740505679653,910.0,6.849e-05,2]
[354451324,1740505679804,910.0,6.849e-05,2]
[354451325,1740505680008,910.0,6.849e-05,2]
[354451326,1740505680213,910.0,6.849e-05,2]
[354451327,1740505680419,910.0,6.849e-05,2]
[354451328,1740505681191,910.0,6.849e-05,2]
[354451329,1740505681397,910.0,6.849e-05,2]
[354451330,1740505681601,910.0,6.849e-05,2]
[354451331,1740505681801,910.0,6.849e-05,2]
[354451332,1740505682010,910.0,6.849e-05,2]
[354451333,1740505682320,910.0,6.849e-05,2]
[354451334,1740505682542,910.0,6.849e-05,2]
[354451335,1740505682756,910.0,6.849e-05,2]
[354451336,1740505687060,910.0,6.849e-05,2]
[354451337,1740505687372,910.0,6.849e-05,2]
[354451338,1740505687586,910.0,6.849e-05,2]
[354451339,1740505687794,910.0,6.849e-05,2]
[354451340,1740505688010,910.0,6.849e-05,2]
[354451341,1740505688234,910.0,6.849e-05,2]
[354451342,1740505688448,910.0,6.849e-05,2]
[354451343,1740505688664,910.0,6.849e-05,2]
[354451344,1740505688874,910.0,6.849e-05,2]
[354451345,1740505689076,910.0,6.849e-05,2]
[354451346,1740505689277,910.0,6.849e-05,2]
[354451347,1740505689493,910.0,6.849e-05,2]
[354451348,1740505689684,910.0,6.849e-05,2]
[354451349,1740505689881,910.0,6.849e-05,2]
[354451350,1740505690109,910.0,6.849e-05,2]
[354451351,1740505690312,910.0,6.849e-05,2]
[354451352,1740505690529,910.0,6.849e-05,2]
[354451353,1740505691119,910.0,6.849e-05,2]
[354451354,1740505692885,910.0,6.849e-05,2]
[354451355,1740505693087,910.0,6.849e-05,2]
[354451356,1740505693293,910.0,6.849e-05,2]
[354451357,1740505693500,910.0,6.849e-05,2]
[354451358,1740505693699,910.0,6.849e-05,2]
[354451359,1740505693897,910.0,6.849e-05,2]
[354451360,1740505730708,186.0,6.849e-05,2]
[354451361,1740505730936,186.0,6.849e-05,2]
[354451362,1740505731139,186.0,6.849e-05,2]
[354451363,1740505731359,186.0,6.849e-05,2]
[354451364,1740505731658,186.0,6.849e-05,2]
[354451365,1740505731876,186.0,6.849e-05,2]
[354451366,1740505732091,186.0,6.849e-05,2]
[354451367,1740505732309,186.0,6.849e-05,2]
[354451368,1740505732532,186.0,6.849e-05,2]
[354451369,1740505732735,186.0,6.849e-05,2]
[354451370,1740505732942,186.0,6.849e-05,2]
[354451371,1740505733261,186.0,6.849e-05,2]
[354451372,1740505733476,186.0,6.849e-05,2]
[354451373,1740505733689,186.0,6.849e-05,2]
[354451374,1740505733923,186.0,6.849e-05,2]
[354451375,1740505734140,186.0,6.849e-05,2]
[354451376,1740505734369,186.0,6.849e-05,2]
[354451377,1740505736382,3008.3128351,0.00013438,2]
[354451378,1740505739430,2957.83342361,0.00029,10]
[354451383,1740505788067,154.0,6.849e-05,2]
[354451384,1740505788864,154.0,6.849e-05,2]
[354451385,1740505789094,154.0,6.849e-05,2]
[354451386,1740505789308,154.0,6.849e-05,2]
[354451387,1740505789518,154.0,6.849e-05,2]
[354451388,1740505789717,154.0,6.849e-05,2]
[354451389,1740505789926,154.0,6.849e-05,2]
[354451390,1740505790133,154.0,6.849e-05,2]
[354451391,1740505790343,154.0,6.849e-05,2]
[354451392,1740505790559,154.0,6.849e-05,2]
[354451393,1740505790752,154.0,6.849e-05,2]
[354451394,1740505790956,154.0,6.849e-05,2]
[354451395,1740505791160,154.0,6.849e-05,2]
[354451396,1740505791378,154.0,6.849e-05,2]
[354451459,1740505832615,-2144.0440657,0.00013916,2]
[354451460,1740505832627,-1678.4883874,0.00014224,2]
[354451461,1740505832637,-195.0470201,0.00014224,2]
[354451463,1740505832647,-197.68737512,0.000143,2]
[354451465,1740505832657,-339.29667581,0.000144,2]
[354451466,1740505832667,-151.0,0.00014491,2]
[354451467,1740505832677,-300.0,0.00014499,2]
[354451468,1740505832686,-63069.67004084,0.000145,2]
[354451469,1740505832696,-7167.0,0.000145,2]
[354451470,1740505832706,-4495.0,0.00014644,2]
[354451471,1740505832716,-2247.0,0.00014644,2]
[354451473,1740505832725,-2247.0,0.00014644,2]
[354451474,1740505832735,-2247.0,0.00014644,2]
[354451475,1740505832744,-2247.0,0.00014644,2]
[354451476,1740505832754,-842.20359304,0.00014644,2]
[354451477,1740505832763,-420.0,0.00015876,2]
[354451478,1740505832773,-500.0,0.0001625,2]
[354451479,1740505832783,-251.01303338,0.0001625,2]
[354451480,1740505832792,-500.0,0.0001625,2]
[354451481,1740505832803,-386.11938022,0.0001625,2]
[354451482,1740505832812,-500.0,0.0001625,2]
[354451483,1740505832822,-260.47209742,0.0001625,2]
[354451484,1740505832832,-500.0,0.0001625,2]
[354451485,1740505832841,-210.19721518,0.0001625,2]
[354451486,1740505832851,-15558.1339398,0.00016391,2]
[354451487,1740505832863,-24900.0,0.00016411,2]
[354451488,1740505832872,-169.870073,0.00017166,2]
[354451489,1740505832881,-587.0,0.00017385,2]
[354451490,1740505832891,-169.870073,0.00017488,2]
[354451491,1740505832900,-169.870073,0.0001781,2]
[354451492,1740505832910,-169.870073,0.00018132,2]
[354451493,1740505832919,-169.870073,0.00018454,2]
[354451494,1740505832929,-169.870073,0.00018776,2]
[354451495,1740505832939,-223.0,0.00019036,2]
[354451496,1740505832949,-169.870073,0.00019098,2]
[354451497,1740505832958,-250.0,0.00019327,2]
[354451498,1740505832968,-15558.1339398,0.00019408,2]
[354451499,1740505832978,-14510.8461623,0.00019418,2]
[354451500,1740505832987,-169.870073,0.00019419,2]
[354451501,1740505832996,-169.870073,0.00019741,2]
[354451502,1740505833006,-895.38451718,0.000201,2]
[354451503,1740505833015,-895.38451709,0.000201,2]
[354451504,1740505833025,-895.38451709,0.000201,2]
[354451505,1740505833035,-895.38451709,0.00020348,2]
[354451506,1740505833044,-1000.0,0.00021729,2]
[354451507,1740505833054,-502.04676259,0.00021729,2]
[354451508,1740505833064,-1000.0,0.00021729,2]
[354451509,1740505833073,-1000.0,0.00021729,2]
[354451510,1740505833084,-895.38451709,0.00021831,3]
[354451511,1740505833094,-2957.83342361,0.00023141,3]
[354451512,1740505833105,-895.38451709,0.00023314,3]
[354451513,1740505833115,-339.2966758,0.00024637,2]
[354451514,1740505833124,-895.38451709,0.00024797,3]
[354451515,1740505833134,-895.38451709,0.00026279,4]
[354451516,1740505833144,-2405.74643761,0.00026849,3]
[354451517,1740505833154,-895.38451709,0.00027762,4]
[354451518,1740505833164,-15558.1339398,0.00029235,3]
[354451519,1740505833174,-895.38451709,0.00029245,5]
[354451520,1740505833184,-179.0,0.0003,2]
[354451521,1740505833194,-895.38451709,0.00030728,5]
[354451522,1740505833204,-151.0,0.000317,15]
[354451523,1740505833213,-1019.99845014,0.00031748,5]
[354451524,1740505833223,-1500.0,0.00031748,5]
[354451525,1740505833233,-1500.0,0.00031748,5]
[354451526,1740505833244,-500.0,0.00032071,5]
[354451527,1740505833253,-300.0,0.00032071,5]
[354451528,1740505833263,-895.38451709,0.0003221,6]
[354451529,1740505833273,-895.38451709,0.00033693,6]
[354451530,1740505833283,-151.0,0.000337,18]
[354451531,1740505833293,-339.2966758,0.00034873,2]
[354451532,1740505833302,-1455.64742412,0.00034897,2]
[354451533,1740505833312,-150.5,0.00034967,120]
[354451534,1740505833322,-471.14705293,0.00034973,5]
[354451535,1740505833331,-205.09072233,0.00034973,5]
[354451536,1740505833341,-500.0,0.00034973,5]
[354451537,1740505833351,-500.0,0.00034973,5]
[354451538,1740505833362,-500.0,0.00034973,5]
[354451539,1740505833372,-500.0,0.00034973,5]
[354451540,1740505833383,-500.0,0.00034973,5]
[354451541,1740505833393,-500.0,0.00034973,5]
[354451542,1740505833402,-500.0,0.00034973,5]
[354451543,1740505833411,-500.0,0.00034973,5]
[354451544,1740505833422,-500.0,0.00034973,5]
[354451545,1740505833431,-500.91500482,0.00034973,5]
[354451546,1740505833440,-500.0,0.00034973,5]
[354451547,1740505833450,-500.0,0.00034973,5]
[354451548,1740505833460,-150.5,0.00034977,120]
[354451549,1740505833470,-15558.1339398,0.00034979,3]
[354451550,1740505833479,-31116.2678796,0.00034986,3]
[354451551,1740505833489,-150.5,0.00034987,120]
[354451552,1740505833499,-500.0,0.00034988,7]
[354451553,1740505833508,-500.0,0.00034988,7]
[354451554,1740505833518,-500.0,0.00034988,7]
[354451555,1740505833527,-500.0,0.00034988,2]
[354451556,1740505833537,-500.0,0.00034988,7]
[354451557,1740505833549,-500.0,0.00034988,7]
[354451558,1740505833559,-500.0,0.00034988,7]
[354451559,1740505833570,-500.0,0.00034988,7]
[354451560,1740505833581,-500.0,0.00034988,7]
[354451561,1740505833591,-500.0,0.00034988,2]
[354451562,1740505833814,-220.56865447,0.00034988,7]
[354451563,1740505833825,-500.0,0.00034988,7]
[354451564,1740505833834,-500.0,0.00034988,7]
[354451565,1740505833844,-500.0,0.00034988,7]
[354451566,1740505833856,-500.0,0.00034988,7]
[354451567,1740505833866,-500.0,0.00034988,7]
[354451568,1740505833876,-500.0,0.00034988,7]
[354451569,1740505833886,-15558.1339398,0.00034988,3]
[354451570,1740505833897,-2957.83342361,0.00034988,3]
[354451571,1740505833907,-151.0,0.0003499,14]
[354451572,1740505833917,-579.56017,0.0003499,14]
[354451573,1740505833927,-579.56017,0.0003499,14]
[354451574,1740505833937,-2376.344803,0.0003499,14]
[354451575,1740505833947,-2376.344803,0.0003499,14]
[354451576,1740505833957,-259.948416,0.0003499,14]
[354451577,1740505833966,-696.553181,0.0003499,14]
[354451578,1740505833976,-696.553181,0.0003499,14]
[354451579,1740505833986,-176.074192,0.0003499,14]
[354451580,1740505833995,-176.074192,0.0003499,14]
[354451581,1740505834005,-15558.1339398,0.0003499,3]
[354451582,1740505834015,-2957.83342361,0.00034996,7]
[354451583,1740505834025,-2957.83342361,0.00034998,7]
[354451584,1740505834035,-2376.344803,0.00034999,14]
[354451585,1740505834045,-2376.344803,0.00034999,14]
[354451586,1740505834055,-2376.344803,0.00034999,14]
[354451587,1740505834064,-2376.344803,0.00034999,14]
[354451588,1740505834074,-696.553181,0.00034999,14]
[354451589,1740505834084,-696.553181,0.00034999,14]
[354451590,1740505834093,-696.553181,0.00034999,14]
[354451591,1740505834105,-696.553181,0.00034999,14]
[354451592,1740505834114,-176.074192,0.00034999,14]
[354451593,1740505834124,-176.074192,0.00034999,14]
[354451594,1740505834134,-176.074192,0.00034999,14]
[354451595,1740505834144,-176.074192,0.00034999,14]
[354451596,1740505834154,-151.0,0.00035,14]
[354451597,1740505834163,-163.87896,0.00035,14]
[354451598,1740505834174,-579.56017,0.00035,14]
[354451599,1740505834184,-579.56017,0.00035,14]
[354451600,1740505834194,-1143.316975,0.00035,14]
[354451601,1740505834204,-2376.344803,0.00035,14]
[354451602,1740505834213,-2376.344803,0.00035,14]
[354451603,1740505834223,-696.553181,0.00035,14]
[354451604,1740505834232,-696.553181,0.00035,14]
[354451605,1740505834242,-28291.38,0.00035,30]
[354451606,1740505834252,-176.074192,0.00035,14]
[354451607,1740505834261,-176.074192,0.00035,14]
[354451608,1740505834272,-2957.83342361,0.00035,30]
[354451609,1740505834282,-895.38451709,0.00035176,7]
[354451610,1740505834292,-151.0,0.000356,10]
[354451611,1740505834303,-151.0,0.000356,14]
[354451612,1740505834313,-1455.64742412,0.00036508,2]
[354451613,1740505834323,-610.26514134,0.0003665,2]
[354451614,1740505834332,-895.38451709,0.00036659,7]
[354451615,1740505834342,-151.0,0.00037,14]
[354451616,1740505834352,-151.0,0.00037,14]
[354451617,1740505834362,-151.0,0.00037,14]
[354451618,1740505834373,-151.0,0.00037,14]
[354451619,1740505834382,-151.0,0.00037,19]
[354451620,1740505834393,-151.0,0.00037,14]
[354451621,1740505834403,-151.0,0.00037,14]
[354451622,1740505834412,-394.560138,0.00037,14]
[354451623,1740505834422,-394.560138,0.00037,14]
[354451624,1740505834431,-151.0,0.00037,14]
[354451625,1740505834441,-242.497633,0.00037,14]
[354451626,1740505834451,-242.497633,0.00037,14]
[354451627,1740505834461,-284.016483,0.00037,14]
[354451628,1740505834471,-284.016483,0.00037,14]
[354451629,1740505834481,-157.56,0.00037039,5]
[354451630,1740505834490,-500.0,0.00037182,5]
[354451631,1740505834500,-500.0,0.00037182,5]
[354451632,1740505834509,-500.0,0.00037182,5]
[354451633,1740505834520,-641.86543425,0.00037182,5]
[354451634,1740505834529,-400.17803338,0.00037182,5]
[354451635,1740505834539,-500.0,0.00037182,5]
[354451636,1740505834549,-518.73600501,0.00037182,5]
[354451637,1740505834562,-500.0,0.00037182,5]
[354451638,1740505834571,-500.0,0.00037182,5]
[354451639,1740505834581,-151.14733521,0.00037182,5]
[354451640,1740505834592,-508.73457279,0.00037433,2]
[354451641,1740505834603,-524.2534289,0.00037551,5]
[354451642,1740505834687,-500.0,0.00034988,2]
[354451643,1740505834696,-500.0,0.00034988,7]
[354451644,1740505834706,-500.0,0.00034988,7]
[354451645,1740505834715,-500.0,0.00034988,7]
[354451646,1740505834725,-500.0,0.00034988,7]
[354451647,1740505834735,-500.0,0.00034988,2]
[354451648,1740505834744,-500.0,0.00034988,7]
[354451649,1740505834754,-500.0,0.00034988,7]
[354451650,1740505834764,-475.7465711,0.00037551,5]
[354451651,1740505834773,-151.0,0.000376,10]
[354451652,1740505834783,-500.0,0.00037643,5]
[354451653,1740505834792,-393.65955209,0.00037643,5]
[354451654,1740505834802,-500.0,0.00037769,2]
[354451655,1740505834812,-500.0,0.00037769,5]
[354451656,1740505834822,-175.14282837,0.00037798,2]
[354451657,1740505834831,-500.65570921,0.00037921,5]
[354451658,1740505834841,-155.14751784,0.00037921,5]